Cogmind - Beta 16.1 @@@ ROGUE MODE // 2026.02.13 @ 16:48:45 Player: Stick8ug Result: Destroyed by S-10 Pest with Light Assault Rifle Performance ------------- Evolutions (2) 1000 Regions Visited (6) 1200 Robots Destroyed (30) 150 Value Destroyed (1020) 1020 Prototype IDs (2) 40 Alien Tech Used (0) 0 Bonus (700) 700 TOTAL SCORE: 4110 Bonus ------- Entered Garrisons 200 Used RIF Installer 500 Cogmind --------- Core Integrity 0/550 Matter 33/300 Energy 100/100 System Corruption 2% Temperature Cool (0) Movement Core (100) Ox1 Location -8/Materials Parts ------- > --- POWER (1) -------- (None) > --- PROPULSION (4) --- (None) > --- UTILITY (4) ------ Small Storage Unit Core Analyzer > --- WEAPON (2) ------- Improved Datajack > --- INVENTORY (8) ---- Light Nuclear Core Improved Heat Sink Improved Sensor Array Improved Signal Interpreter Improved Terrain Scanner Core Analyzer Peak State ------------ > --- POWER ------------ Light Nuclear Core > --- PROPULSION ------- Aluminum Leg Aluminum Leg Aluminum Leg Carbon-fiber Leg > --- UTILITY ---------- Small Storage Unit Advanced Weight Redist. System Improved Terrain Scanner Core Analyzer > --- WEAPON ----------- Assault Rifle Light Assault Rifle > --- INVENTORY -------- Ion Engine Ion Engine Aluminum Leg Core Analyzer Assault Cannon Datajack [Rating: 23] Favorites ----------- Power Ion Engine Engine Ion Engine Power Core Light Nuclear Core Propulsion Aluminum Leg Leg Aluminum Leg Wheel Compact Wheel Flight Unit Flight Unit Utility Small Storage Unit Device Advanced Weight Redist. System Storage Small Storage Unit Processor Core Analyzer Protection Improved Light Armor Plating Weapon Mini Grenade Launcher Ballistic Gun Assault Rifle Ballistic Cannon Assault Cannon Launcher Mini Grenade Launcher Special Weapon Mining Laser Special Melee Weapon Datajack Build | -11 -10 -9 -9 -8 -8 -8 ------- Run | Yrd Mat Mat Min Mat Gar Mat Slots Evolved 4 | . . 2 . 2 . . Power . | . . . . . . . Propulsion 2 | . . 2 . . . . Utility 2 | . . . . 2 . . Weapon . | . . . . . . . Parts Attached 35 | 9 2 3 . 4 8 9 Power 3 | 1 . 1 . . 1 . Engine 2 | 1 . 1 . . . . Core 1 | . . . . . 1 . Reactor . | . . . . . . . Propulsion 14 | 3 2 2 . . 5 2 Treads . | . . . . . . . Leg 9 | 2 . . . . 5 2 Wheel 1 | 1 . . . . . . Hover . | . . . . . . . Flight 4 | . 2 2 . . . . Utility 8 | 3 . . . 2 1 2 Device 4 | 2 . . . 1 . 1 Storage 2 | 1 . . . . . 1 Processor 1 | . . . . 1 . . Hackware . | . . . . . . . Protection 1 | . . . . . 1 . Artifact . | . . . . . . . Weapon 10 | 2 . . . 2 1 5 Energy Gun . | . . . . . . . Energy Cannon . | . . . . . . . Ballistic Gun 3 | 2 . . . . . 1 Ballistic Cannon 1 | . . . . 1 . . Launcher 3 | . . . . . 1 2 Special Weapon 1 | . . . . . . 1 Impact Weapon . | . . . . . . . Slashing Weapon . | . . . . . . . Piercing Weapon . | . . . . . . . Special Melee Weapon 2 | . . . . 1 . 1 Unidentified Prototypes . | . . . . . . . Parts Lost 25 | . . . . . 10 15 Power 3 | . . . . . 1 2 Propulsion 11 | . . . . . 8 3 Utility 3 | . . . . . . 3 Weapon 8 | . . . . . 1 7 Highest Loss Streak 6 | . . . . . 3 6 To Critical Strikes . | . . . . . . . Average Backups 5 | 1 2 3 3 4 6 6 Power 1 | . 1 1 1 1 1 1 Propulsion . | . 1 . . . . . Utility 2 | . . . . 1 2 4 Weapon . | . . 2 2 2 1 . Tool/Special . | . . . . . . . Unused Backups 6 | . . . . . . 6 Power 1 | . . . . . . 1 Propulsion . | . . . . . . . Utility 5 | . . . . . . 5 Weapon . | . . . . . . . Tool/Special . | . . . . . . . Average Slot Usage (%) 67 | . 93 69 77 77 81 51 Engine 6 | . 14 9 11 9 7 4 Leg 9 | . 17 . . . 15 7 Flight 7 | . 7 42 44 36 5 . Device 9 | . 12 7 11 14 12 5 Storage 9 | . 14 11 11 9 9 9 Processor 7 | . . . . 3 9 9 Protection 3 | . . . . . 5 4 Ballistic Gun 4 | . 25 . . 1 5 . Launcher 4 | . . . . . 5 5 Special Melee Weapon 4 | . . . . . 4 5 Peak Build Rating 23 | 9 9 9 9 18 23 18 Average Rating 13 | 6 8 8 9 15 17 13 On Entrance 9 | . 9 3 9 9 18 17 Avg Prop Armor Cover (%) 5 | . . . . 5 5 . Naked Turns . | . . . . . . . Heaviest Build 16 | 14 14 11 11 16 16 15 Greatest Support 45 | 20 20 16 16 25 45 20 Greatest Overweight (x) 4 | 4 4 . . . 4 4 Average Overweight (x) . | . . . . . . . Largest Inventory Capacity 8 | 8 8 8 8 8 8 8 Average Capacity 7 | 7 8 8 8 8 8 8 Most Carried 8 | 2 7 6 3 7 8 8 Average Carried 5 | 1 2 3 3 5 6 6 Final Capacity 8 | 8 8 8 8 8 8 8 Final Carried 7 | 2 7 3 3 5 6 6 Class Distribution -------------------- 67% | Mutant 23% | Scavenger-Mutant 8% | Scavenger-Sprinter Dominant Class ---------------- Mutant | -10/Materials Scavenger-Sprinter | -9/Materials Scavenger-Sprinter | -9/Mines Scavenger-Mutant | -8/Materials Scavenger-Mutant | -8/Garrison Mutant | -8/Materials Resources | -11 -10 -9 -9 -8 -8 -8 ----------- Run | Yrd Mat Mat Min Mat Gar Mat Matter Collected 757 | 310 36 . . . 315 96 Remotely 28 | 28 . . . . . . Salvage Created 792 | 83 54 . . 60 361 234 Parts 61 | 5 8 . . 4 27 17 Haulers Intercepted . | . . . . . . . Recyclers Shooed . | . . . . . . . Parts Field Recycled . | . . . . . . . Retrieved Matter . | . . . . . . . Parts Self-Destructed . | . . . . . . . Prevented . | . . . . . . . Parts Restored . | . . . . . . . Kills | -11 -10 -9 -9 -8 -8 -8 ------- Run | Yrd Mat Mat Min Mat Gar Mat Combat Hostiles Destroyed 26 | . 3 . . 1 13 9 Guns 11 | . 3 . . 1 6 1 Cannons 2 | . . . . . . 2 AOE 13 | . . . . . 7 6 Classes Destroyed 10 | 2 1 . . 1 4 2 Worker 1 | . . . . . . 1 Builder 1 | . . . . . . 1 Tunneler 1 | 1 . . . . . . Recycler 1 | 1 . . . . . . Swarmer 6 | . 3 . . . 3 . Cutter 2 | . . . . . 2 . Grunt 13 | . . . . . 5 8 Sentry 3 | . . . . 1 1 1 Demolisher 1 | . . . . . 1 . Hunter 1 | . . . . . 1 . Best Kill Streak 5 | 2 3 . . 1 5 4 Combat Bots Only 5 | . 3 . . 1 5 3 Max Kills in Single Turn 3 | 1 2 . . 1 2 3 Gunslinging 1 | . 1 . . . . . Exploded 3 | . . . . . 2 3 Melee . | . . . . . . . Uniques/NPCs Destroyed . | . . . . . . . Combat | -11 -10 -9 -9 -8 -8 -8 -------- Run | Yrd Mat Mat Min Mat Gar Mat Hostile Shots Fired 178 | . 10 . . 7 50 111 Missed 51 | . 5 . . 6 11 29 Hits 127 | . 5 . . 1 39 82 Melee 1 | . . . . . 1 . Projectile 126 | . 5 . . 1 38 82 AOE 11 | . . . . . 11 . Critical Strikes 10 | . . . . . 3 7 Damage Taken 2582 | . 38 . . 13 990 1541 Core 579 | . 23 . . . 70 486 Absorbed by Shields 11 | . . . . . 11 . Core Remaining (%) 96 | 100 90 . 100 . . . Volleys Fired 70 | 5 4 . . 2 33 26 Largest 2 | 2 2 . . 2 2 2 Hottest 67 | 40 40 . . 40 50 67 Shots Fired 108 | 10 8 . . 4 55 31 Gun 77 | 10 8 . . 4 43 12 Cannon 7 | . . . . . . 7 Launcher 24 | . . . . . 12 12 Special . | . . . . . . . Kinetic 84 | 10 8 . . 4 43 19 Thermal . | . . . . . . . Explosive 24 | . . . . . 12 12 Electromagnetic . | . . . . . . . Robot Hit Streak 10 | 2 2 . . 3 9 10 Robot Miss Streak 3 | 3 2 . . 1 3 2 Penetration Max . | . . . . . . . Secondary Targets 1 | . 1 . . . . . Max Gunslinging Chain 1 | . 1 . . . . . Shots Hit Robots 75 | 4 4 . . 2 36 29 Core Hits 63 | 3 3 . . 2 29 26 Critical Kills . | . . . . . . . Critical Parts Destroyed . | . . . . . . . Critical Strikes . | . . . . . . . Melee Attacks 10 | . . . . . 1 9 Impact . | . . . . . . . Slashing . | . . . . . . . Piercing . | . . . . . . . Sneak Attacks 3 | . . . . . . 3 Combat Hostiles . | . . . . . . . Follow-up Attacks . | . . . . . . . Damage Inflicted 1962 | 47 44 . . 28 703 1140 Guns 597 | 47 44 . . 28 311 167 Cannons 128 | . . . . . . 128 Explosions 1228 | . . . . . 392 836 Melee . | . . . . . . . Ramming 9 | . . . . . . 9 Kinetic 725 | 47 44 . . 28 311 295 Thermal . | . . . . . . . Explosive 1228 | . . . . . 392 836 Electromagnetic . | . . . . . . . Impact . | . . . . . . . Slashing . | . . . . . . . Piercing . | . . . . . . . Highest Corruption 2 | . . . . . . 2 Average Corruption 2 | . . . . . . 2 Corruption Purged . | . . . . . . . Corruption Blocked . | . . . . . . . Effects 5 | . . . . . . 5 Message Errors 2 | . . . . . . 2 Matter Fused 2 | . . . . . . 2 Heat Flow Errors 1 | . . . . . . 1 Overload Shots . | . . . . . . . Overflow Damage 57 | . . . . . 25 32 Projectiles . | . . . . . . . Explosions 57 | . . . . . 25 32 Melee . | . . . . . . . Knockbacks 2 | . . . . . . 2 Impact . | . . . . . . . Kinetic 2 | . . . . . . 2 Secondary . | . . . . . . . Self-Inflicted Damage 401 | . . . . . 132 269 Shots 12 | . . . . . 3 9 Rammed 3 | . . . . . . 3 Targets Rammed 4 | . . . . . . 4 Kicked 1 | . . . . . . 1 Crushed . | . . . . . . . Highest Temperature 223 | . . . . . 22 223 Average Temperature 38 | . . . . . 5 52 Received Heat Transfer 927 | . . . . . 189 738 Siege Activations . | . . . . . . . Martial Activations . | . . . . . . . Shielding Activations . | . . . . . . . Robots Disrupted . | . . . . . . . Combat Hostiles . | . . . . . . . Robots Corrupted . | . . . . . . . Combat Hostiles . | . . . . . . . Parts Fried . | . . . . . . . Impact Corruptions . | . . . . . . . Robots Melted . | . . . . . . . Combat Hostiles . | . . . . . . . Parts Melted . | . . . . . . . Heat Transferred . | . . . . . . . Parts Sabotaged . | . . . . . . . Parts Stolen . | . . . . . . . Parts Stripped . | . . . . . . . Power Chain Reactions . | . . . . . . . Alert | -11 -10 -9 -9 -8 -8 -8 ------- Run | Yrd Mat Mat Min Mat Gar Mat Maximum Alert Level 1 | . . . . . 1 . Low Security (%) 91 | 100 100 100 100 100 71 100 Level 1 8 | . . . . . 28 . Level 2 . | . . . . . . . Level 3 . | . . . . . . . Level 4 . | . . . . . . . Level 5 . | . . . . . . . High Security . | . . . . . . . Max Security . | . . . . . . . Peak Influence 285 | 10 60 39 7 30 285 190 Initial 138 | . . 24 7 2 6 138 Average 90 | . 22 27 7 7 141 97 Influence Increases 915 | 10 87 15 . 35 375 393 Destroy 0b10 Robot/C 520 | . 60 . . 20 260 180 Destroy 0b10 Robot/NC 20 | 10 . . . . . 10 Destroy Leader 80 | . 10 . . 10 20 40 Successful Hack 19 | . 2 . . 5 . 12 Disable Machine 75 | . . . . . 15 60 Destroy Structure 111 | . . . . . 35 76 Partial Spotted 60 | . 15 15 . . 30 . Lose Combat Pursuer 30 | . . . . . 15 15 Influence Decreases 826 | 10 30 53 12 32 100 589 Entered New Map 201 | . . 33 12 5 4 147 Time Decay 379 | 10 30 20 . 27 . 292 Lost Part 246 | . . . . . 96 150 Squads Dispatched 5 | . 1 1 . . . 3 Investigation 1 | . . . . . . 1 Extermination . | . . . . . . . Reinforcement 4 | . 1 1 . . . 2 Assault . | . . . . . . . Garrison . | . . . . . . . Intercept . | . . . . . . . Searches Triggered . | . . . . . . . Construction Impeded 1 | . . . . . . 1 Haulers Reinforced . | . . . . . . . Active Scanning Responses . | . . . . . . . Cargo Convoy Interrupts . | . . . . . . . Stealth | -11 -10 -9 -9 -8 -8 -8 --------- Run | Yrd Mat Mat Min Mat Gar Mat Distress Signals 1 | . . . . . . 1 Communications Jammed . | . . . . . . . Distress Signals . | . . . . . . . Times Spotted 49 | . 5 2 . 3 16 23 Peak Tracking Total 9 | . 3 3 . 2 4 9 Tactical Retreats 2 | . . . . . 1 1 Traps | -11 -10 -9 -9 -8 -8 -8 ------- Run | Yrd Mat Mat Min Mat Gar Mat Traps Triggered 3 | . . . . . 2 1 Indirectly . | . . . . . . . Trap Hack Attempts . | . . . . . . . Triggered . | . . . . . . . Disarmed . | . . . . . . . Reprogrammed . | . . . . . . . Reused . | . . . . . . . Traps Extracted . | . . . . . . . Installed . | . . . . . . . Triggered . | . . . . . . . Machines | -11 -10 -9 -9 -8 -8 -8 ---------- Run | Yrd Mat Mat Min Mat Gar Mat Machines Disabled 5 | . . . . . 1 4 Max in Single Turn 2 | . . . . . 1 2 Machines Repaired . | . . . . . . . Machines Dismantled . | . . . . . . . Machines Sabotaged . | . . . . . . . Overloaded Fab Kills . | . . . . . . . Hacking | -11 -10 -9 -9 -8 -8 -8 --------- Run | Yrd Mat Mat Min Mat Gar Mat Machines Accessed 8 | . 1 1 . 2 . 4 Terminals 5 | . 1 . . 1 . 3 Fabricators . | . . . . . . . Repair Stations . | . . . . . . . Recycling Units 1 | . . 1 . . . . Scanalyzers 1 | . . . . . . 1 Garrison Access 1 | . . . . 1 . . Total Hacks 28 | . 5 1 . 10 . 12 Successful 15 | . 3 1 . 5 . 6 Failed 13 | . 2 . . 5 . 6 Catastrophic . | . . . . . . . Database Lockouts . | . . . . . . . Manual . | . . . . . . . Terminals 21 | . 5 . . 6 . 10 Fabricators . | . . . . . . . Repair Stations . | . . . . . . . Recycling Units 1 | . . 1 . . . . Scanalyzers 2 | . . . . . . 2 Garrison Access 4 | . . . . 4 . . Terminal Hacks 11 | . 3 . . 4 . 4 Record 2 | . 1 . . 1 . . Prototype ID Bank 1 | . 1 . . . . . Alert Level 2 | . . . . 1 . 1 Dispatch Records 1 | . . . . . . 1 Maintenance Status 2 | . . . . 1 . 1 Transport Status 1 | . . . . . . 1 Hauler Manifests 2 | . 1 . . 1 . . Fabricator Hacks . | . . . . . . . Repair Station Hacks . | . . . . . . . Recycling Unit Hacks 1 | . . 1 . . . . Report Inventory 1 | . . 1 . . . . Scanalyzer 2 | . . . . . . 2 Insert Component 1 | . . . . . . 1 Retrieve Study 1 | . . . . . . 1 Garrison Access Hacks 1 | . . . . 1 . . Unlock Access 1 | . . . . 1 . . Unauthorized Hacks . | . . . . . . . Terminals . | . . . . . . . Fabricators . | . . . . . . . Repair Stations . | . . . . . . . Recycling Units . | . . . . . . . Scanalyzers . | . . . . . . . Garrison Access . | . . . . . . . Data Cores Recovered . | . . . . . . . Used . | . . . . . . . Hacking Detections 5 | . 1 . . 1 . 3 Full Trace Events 1 | . . . . . . 1 Feedback Events . | . . . . . . . Feedback Blocked . | . . . . . . . Robot Schematics Acquired . | . . . . . . . Robots Built . | . . . . . . . Authchips . | . . . . . . . Time . | . . . . . . . Total Robot Build Rating . | . . . . . . . Part Schematics Acquired . | . . . . . . . Parts Built . | . . . . . . . Authchips . | . . . . . . . Time . | . . . . . . . Total Part Build Rating . | . . . . . . . Part Studies Acquired 1 | . . . . . . 1 Parts Repaired . | . . . . . . . Time . | . . . . . . . Parts Recycled . | . . . . . . . Recycled Matter . | . . . . . . . Retrieved Matter . | . . . . . . . Retrieved Components . | . . . . . . . Parts Scanalyzed . | . . . . . . . Part Schematics Acquired . | . . . . . . . Parts Damaged . | . . . . . . . Bothacking | -11 -10 -9 -9 -8 -8 -8 ------------ Run | Yrd Mat Mat Min Mat Gar Mat Used RIF Installer 1 | . . . . . 1 . Robots Hacked 5 | . . . . . . 5 Non-combat 4 | . . . . . . 4 Combat 1 | . . . . . . 1 Robot Hacks Applied 5 | . . . . . . 5 parse_system 2 | . . . . . . 2 no_distress 3 | . . . . . . 3 Relay Couplers Released . | . . . . . . . Fabnet Peak Effective % . | . . . . . . . Robots Rewired . | . . . . . . . Allies Hacked . | . . . . . . . Hacks Repelled . | . . . . . . . Allies | -11 -10 -9 -9 -8 -8 -8 -------- Run | Yrd Mat Mat Min Mat Gar Mat Total Allies . | . . . . . . . Largest Group . | . . . . . . . Highest-Rated Group . | . . . . . . . Highest-Rated Ally . | . . . . . . . Total Orders . | . . . . . . . Ally Attacks . | . . . . . . . Total Damage . | . . . . . . . Kills . | . . . . . . . Allies Corrupted . | . . . . . . . Allies Melted . | . . . . . . . Intel | -11 -10 -9 -9 -8 -8 -8 ------- Run | Yrd Mat Mat Min Mat Gar Mat Active Infowar (turns) 381 | 29 98 44 14 91 1 104 Terrain 381 | 29 98 44 14 91 1 104 Robot Analysis Total . | . . . . . . . Derelict Logs Recovered . | . . . . . . . Drone Launches . | . . . . . . . Drone Recoveries . | . . . . . . . Exploration | -11 -10 -9 -9 -8 -8 -8 ------------- Run | Yrd Mat Mat Min Mat Gar Mat Turns Passed 1504 | 110 106 47 14 91 463 673 Spaces Moved 1195 | 64 72 137 46 168 319 389 Core 118 | 13 1 . . . 3 101 Treads . | . . . . . . . Legs 582 | 51 40 . . . 203 288 Wheels . | . . . . . . . Hover . | . . . . . . . Flight 495 | . 31 137 46 168 113 . Fastest Speed 31 | 50 37 31 31 31 34 100 Average Speed 98 | 116 103 31 31 31 105 149 Slowest Speed 280 | 250 280 31 31 34 250 250 Overloaded Moves . | . . . . . . . Propulsion Burnouts . | . . . . . . . Robots Hopped . | . . . . . . . Potential Cave-ins . | . . . . . . . Cave-ins Triggered . | . . . . . . . Exploration Rate (%) 22 | 3 19 20 18 14 43 42 Regions Visited 6 Branch Regions 1 Pre-discovered Areas . | . . . . . . . Known Exits Taken 1 | . . . . 1 . . Unknown Exits Taken 4 | 1 1 1 1 . . . Scrap Searched . | . . . . . . . Spaces Dug . | . . . . . . . Terrain Destroyed 180 | . . . . . 56 124 Melee . | . . . . . . . Projectile 1 | . . . . . . 1 AOE 179 | . . . . . 56 123 Terrain Rammed . | . . . . . . . Walls Destroyed . | . . . . . . . Machines Disabled . | . . . . . . . Actions | -11 -10 -9 -9 -8 -8 -8 --------- Run | Yrd Mat Mat Min Mat Gar Mat Total 1414 | 88 98 140 45 201 393 449 Wait 35 | 5 8 . . 19 3 . Move 1185 | 63 71 136 45 167 314 389 Hop . | . . . . . . . Pick Up 18 | 4 2 . . 2 2 8 Fast Attach 20 | 6 2 . . 3 6 3 Attach 26 | 3 2 4 . 4 6 7 Detach 14 | 1 6 . . 4 3 . Swap 3 | . . . . . 2 1 Drop 7 | 1 3 . . . 1 2 Fire 70 | 5 4 . . 2 33 26 Melee 10 | . . . . . 1 9 Ram 3 | . . . . . . 3 Kick 1 | . . . . . . 1 Crush . | . . . . . . . Escape Stasis 22 | . . . . . 22 . Rewire . | . . . . . . . Trap . | . . . . . . . Miscellaneous . | . . . . . . . Route ------- -11/Scrapyard -10/Materials -9/Materials -9/Mines -8/Materials -8/Garrison (discovered 2 exits: *Mat x2) -8/Materials History --------- Turn | Location | Event 20 | -11/Scrapyard | Discovered new exit (range 16) 111 | -11/Scrapyard | Entered Materials 214 | -10/Materials | Discovered new exit (range 9) 217 | -10/Materials | Entered another Materials area 217 | -9/Materials | Evolved 2 slots: Propulsion x2 258 | -9/Materials | Discovered new exit (range 16) 264 | -9/Materials | Entered Mines 276 | -9/Mines | Discovered new exit (range 8) 278 | -9/Mines | Entered Materials 278 | -8/Materials | Evolved 2 slots: Utility x2 368 | -8/Materials | Identified exit to Garrison 369 | -8/Materials | Entered Garrison 377 | -8/Garrison | Triggered checkpoint 397 | -8/Garrison | Triggered checkpoint 427 | -8/Garrison | Triggered checkpoint 504 | -8/Garrison | Lost 3 parts (3n) 580 | -8/Garrison | Lost 3 parts (1p1n1w) 584 | -8/Garrison | Discovered new exit (range 14) 600 | -8/Garrison | Attempted to access garrison exit controls, blocked by remote lockdown 700 | -8/Garrison | Triggered checkpoint 703 | -8/Garrison | Triggered checkpoint 796 | -8/Garrison | Installed Relay Interface Framework 810 | -8/Garrison | Discovered new exit (range 12) 832 | -8/Garrison | Entered Materials 1009 | -8/Materials | Build established: Mutant 1204 | -8/Materials | Lost 6 parts (1p1n2u2w) 1267 | -8/Materials | Core integrity fell below 50% 1448 | -8/Materials | Core integrity fell below 20% 1505 | -8/Materials | Destroyed by S-10 Pest with Light Assault Rifle Last Messages --------------- >>parse_system Reading system data... T-07 Excavator is excavating. Sneak attack on K-01 Serf. Jacked K-01 Serf... >>no_distress Distress signal routine blocked. K-01 Serf collects debris. T-07 Excavator is excavating. K-01 Serf collects debris. Critical hit (Burn: +37). Sneak attack on T-07 Excavator. Jacked T-07 Excavator... >>no_distress Distress signal routine blocked. Jacked W-25 Informer... >>parse_system Reading system data... W-25 Informer sends out distress signal. Jacked W-25 Informer... Map ----- +----------------------------------------------------+ | " |||# #??????????????????????????????? | | " || # #### #??????????????????????????????? | | | # ######/#####????????????????????????????? | | " # ## #????????????????????????????? | | " + ## #??????????????+##+###???????? | | " = # ## """ """ #??#?????????# #??????? | | # ## """ """ ##?????????#?# ???????? | | ###### ## """ """ #????????????# ! ???????? | | ????? # #????????#???# ???????? | | ????? #! #????#???????# ????????? | | ???? # #????????????# ???####?? | | ???? #######+###????????????? ?#### ### | | ???## #?????# #???????????????? ??# | | ????#######?????# #????????????????? ??# """ "" | | ????#???? ???? ?# #???????????????####+#### """ "" | | ????????????????# #??########?????# # """ "" | | ???????????????## ##### ! ####### # | | ?????????????? # # """ "" | | ???????????????# " + """ "" | | ?????????? # """ "" | | ??????????### ######### a ####### # | | ???????????# ???????#?### ####????# # | | ???????????#????????????#g##????###### #### | | ????????????????????????#g#?????# #?# | | ????????????????????????#w##????# #?######## | | ????????????????#########@#?#???## ##????????? | | ??????????????# sss#??????#######?????????? | | ????????????????###########??????????????????????? | | ?????????????????????????????????????????????????? | | ???????????????????#?????????????????????????????? | | ????????????? ???????????????????????????????????? | | ?????????????????????????????????????????????????? | | ?????????????????????????????????????????????????? | | ?????????????????????????????????????????????????? | | ?????????????????????????????????????????????????? | | ?????????????????????????????????????????????????? | | ?????????????????????????????????????????????????? | | ?????????????????????????????????????????????????? | | ?????????????????????????????????????????????????? | | ?????????????????????????????????????????????????? | | ?????????????????????????????????????????????????? | | ?????????????????????????????????????????????????? | | ?????????????????????????????????????????????????? | | ?????????????????????????????????????????????????? | | ?????????????????????????????????????????????????? | | ?????????????????????????????????????????????????? | | ?????????????????????????????????????????????????? | | ?????????????????????????????????????????????????? | | ?????????????????????????????????????????????????? | | ?????????????????????????????????????????????????? | +----------------------------------------------------+ Best States ------------- Heat Dissipation 31 Energy Generation 14 Energy Capacity 250 Matter Stores 300 Matter Capacity 300 Sight Range 16 Terrain Scan Range 16 Terrain Scan Density 10 Additional Mass Support 9 Armor Coverage 150 Evasion (%) 63 Core Analysis 6 Item Schematics ----------------- None Robot Schematics ------------------ None Fabricated ------------ Nothing Repaired ---------- Nothing Studied --------- Datajack | -8/Materials | Hacked Alien Tech Used ----------------- None Achievements -------------- Hydra Item+ Join The Dark Side Challenges ------------ None Game ------ Seed SkeletonTractorActivator Manual? 0 Play Time 00:32:48 Cumulative 12.8 hours Start 2026.02.13 @ 16:15:07 End 2026.02.13 @ 16:48:45 Sessions 1 Manual Loads 0 Difficulty Rogue Special Mode None Game No. 27 Rogue 27 Adventurer 0 Explorer 0 Win Type - Total 0 Types 0/0/0/0/0/0/0/0/0/0 Lore% 4 Gallery% 15 Achievement% 9 Wizard Run 0 Options --------- Layout 1 ASCII 0 Keyboard 0 Movement Arrows Keybinds 0 Fullscreen 1 Font 24/Smallcaps Map View 50x35 Zoom Use 0% Tactical HUD 0 Map Filters NONE Filters NONE Steam 1 RUN: 44672804-fbe5-46ef-935e-9490d4e3a7df